bitfinex/quotes_SOLUSD_20240605
["timestamp","ask_amount","ask_price","bid_price","bid_amount"]
[1717574641692,9.3002,173.69,173.65,2.1306]
[1717574642196,9.3002,173.69,173.64,10.5015]
[1717574642394,9.3002,173.69,173.66,2.1305]
[1717574642599,9.3002,173.69,173.65,2.1306]
[1717574644100,9.3002,173.69,173.66,2.1305]
[1717574644305,2.1302,173.69,173.66,2.1305]
[1717574644513,7.17,173.69,173.65,2.1306]
[1717574644698,9.3004,173.68,173.64,2.1307]
[1717574645094,7.17,173.65,173.6,2.1313]
[1717574645299,9.3009,173.64,173.6,2.1312]
[1717574645499,2.1309,173.63,173.6,2.1312]
[1717574645800,9.3009,173.64,173.6,2.1312]
[1717574645985,9.3009,173.64,173.61,2.1312]
[1717574646187,7.17,173.64,173.61,2.1312]
[1717574646781,7.17,173.63,173.58,4.263]
[1717574646991,9.3011,173.62,173.58,2.1314]
[1717574647398,9.3011,173.62,173.59,2.1314]
[1717574647691,7.17,173.62,173.59,2.1314]
[1717574648098,9.301,173.62,173.58,2.1315]
[1717574649189,7.17,173.61,173.58,2.1315]
[1717574650985,9.3012,173.61,173.57,2.1316]
[1717574651192,7.17,173.59,173.55,2.1319]
[1717574651434,7.17,173.59,173.56,2.1318]
[1717574654709,9.3014,173.59,173.55,2.1318]
[1717574655417,7.17,173.59,173.56,2.1318]
[1717574655594,9.3014,173.59,173.55,2.1318]
[1717574655795,9.3016,173.58,173.54,2.132]
[1717574656010,9.3017,173.57,173.53,2.1321]
[1717574656603,7.17,173.57,173.53,2.1321]
[1717574657000,9.3017,173.57,173.53,2.1321]
[1717574657497,7.17,173.56,173.53,2.1321]
[1717574658726,7.17,173.56,173.51,0.4]
[1717574659222,9.3018,173.56,173.52,2.1323]
[1717574661423,7.17,173.55,173.52,2.1323]
[1717574661803,2.1318,173.56,173.53,2.1321]
[1717574661994,7.17,173.55,173.53,2.1321]
[1717574662198,7.17,173.55,173.52,2.1322]
[1717574662398,2.1318,173.56,173.52,2.1322]
[1717574662613,9.3018,173.56,173.52,2.1322]
[1717574663799,2.1319,173.55,173.52,2.1322]
[1717574663998,2.1319,173.55,173.51,2.5323]
[1717574664336,9.3019,173.55,173.51,2.5323]
[1717574664497,2.1319,173.55,173.52,2.1323]
[1717574664698,9.3019,173.55,173.51,2.5323]
[1717574664924,7.17,173.55,173.52,2.1322]
[1717574665106,2.1318,173.56,173.52,2.1322]
[1717574665307,7.17,173.55,173.52,2.1322]
[1717574665526,9.3019,173.55,173.52,2.1322]
[1717574665895,7.17,173.54,173.52,2.1322]
[1717574666100,2.1318,173.56,173.52,2.1322]
[1717574666318,7.17,173.55,173.52,2.1322]
[1717574667023,2.1318,173.56,173.52,2.1322]
[1717574667322,7.17,173.55,173.52,2.1322]
[1717574667531,9.3019,173.55,173.52,2.1322]
[1717574667904,7.17,173.55,173.52,2.1322]
[1717574668518,9.3019,173.56,173.52,2.1322]
[1717574668827,2.1319,173.55,173.52,2.1322]
[1717574669011,9.3019,173.56,173.52,2.1322]
[1717574669319,2.1319,173.56,173.52,2.1322]
[1717574669719,9.3019,173.56,173.52,2.1322]
[1717574670905,2.1319,173.56,173.52,2.1322]
[1717574671112,9.3019,173.56,173.52,2.1322]
[1717574671924,2.1319,173.55,173.52,2.1322]
[1717574672127,7.17,173.56,173.51,2.5323]
[1717574672128,2.1321,173.54,173.51,2.5323]
[1717574672337,7.17,173.53,173.51,0.4]
[1717574673228,7.17,173.53,173.51,2.5324]
[1717574673441,7.17,173.53,173.51,0.4]
[1717574673603,9.3022,173.53,173.51,0.4]
[1717574674429,9.3023,173.52,173.51,0.4]
[1717574676226,2.1323,173.52,173.51,0.4]
[1717574676401,9.3022,173.53,173.51,0.4]
[1717574677535,2.1323,173.52,173.51,0.4]
[1717574677837,9.3022,173.53,173.51,0.4]
[1717574678132,2.1323,173.52,173.51,0.4]
[1717574679433,9.3023,173.52,173.51,0.4]
[1717574684849,2.1322,173.53,173.51,0.4]
[1717574685142,4.2631,173.58,173.52,2.1322]
[1717574685437,9.3022,173.53,173.51,0.4]
[1717574685617,9.3023,173.52,173.51,0.4]
[1717574685821,7.17,173.52,173.51,0.4]
[1717574686116,2.1322,173.53,173.51,0.4]
[1717574686319,7.17,173.52,173.51,0.4]
[1717574686940,9.3023,173.52,173.51,0.4]
[1717574687144,7.17,173.52,173.51,0.4]
[1717574688546,9.3023,173.52,173.51,0.4]
[1717574690224,36.003,173.52,173.51,0.4]
[1717574690537,59.7751,173.52,173.51,0.4]
[1717574692928,2.1329,173.47,173.41,11.0681]
[1717574693127,2.1329,173.47,173.41,17.2399]
[1717574693128,7.17,173.46,173.41,17.2399]
[1717574693364,4.6047,173.52,173.45,6.1718]
[1717574693545,7.17,173.49,173.46,2.1329]
[1717574693761,2.1328,173.48,173.45,2.1331]
[1717574693935,2.1327,173.49,173.45,2.1331]
[1717574694129,7.17,173.48,173.45,2.1331]
[1717574694538,7.17,173.47,173.45,2.1331]
[1717574695135,2.1327,173.49,173.45,2.1331]
[1717574695836,2.1327,173.49,173.46,2.133]
[1717574696161,2.1327,173.49,173.45,2.1331]
[1717574696758,2.1328,173.48,173.45,2.1331]
[1717574697529,2.1327,173.49,173.45,2.1331]
[1717574698049,9.3028,173.48,173.45,6.3915]
[1717574698236,9.3028,173.48,173.44,2.1332]
[1717574698445,7.17,173.47,173.44,2.1332]
[1717574698935,2.1335,173.42,173.41,0.4]
[1717574699148,9.3035,173.42,173.41,0.4]
[1717574700968,2.134,173.38,173.37,0.8167452]
[1717574701139,7.17,173.38,173.37,0.8167452]
[1717574702533,26.7021,173.38,173.37,0.8167452]
[1717574702741,15.8341,173.38,173.37,0.8167452]
[1717574703152,11.5661,173.38,173.37,0.8167452]
[1717574704248,9.304,173.38,173.37,0.8167452]
[1717574704662,15.9721,173.37,173.31,0.4]
[1717574704964,2.1347,173.33,173.31,0.4]
[1717574705167,7.17,173.32,173.31,0.4]
[1717574706040,2.1345,173.34,173.31,0.4]
[1717574706340,7.17,173.32,173.31,0.4]
[1717574710245,9.3047,173.32,173.31,0.4]
[1717574711976,7.17,173.32,173.31,0.4]
[1717574713681,9.3047,173.32,173.31,0.4]
[1717574713879,7.17,173.32,173.31,0.4]
[1717574715371,2.1345,173.34,173.31,0.4]
[1717574715552,7.17,173.32,173.31,0.4]
[1717574717470,2.1344,173.35,173.31,2.5348]
[1717574717684,9.3045,173.34,173.31,0.4]
[1717574717865,7.17,173.33,173.31,0.4]
[1717574718483,0.17,173.36,173.31,0.4]
[1717574718484,7.17,173.32,173.31,0.4]
[1717574718688,9.3047,173.32,173.31,0.4]
[1717574718974,7.17,173.32,173.31,0.4]
[1717574719659,9.3047,173.32,173.31,0.4]
[1717574722173,28.6876,173.32,173.31,0.4]
[1717574722382,28.8576,173.32,173.31,0.4]
[1717574723264,12.8121,173.27,173.26,0.03589618]
[1717574723571,28.5236,173.27,173.26,0.03589618]
[1717574723768,28.8636,173.27,173.26,0.03589618]
[1717574724285,28.6936,173.27,173.26,0.03589618]
[1717574724494,28.5236,173.27,173.26,0.03589618]
[1717574725388,22.1175,173.27,173.26,0.03589618]
[1717574726388,13.576,173.27,173.26,0.03589618]
[1717574726885,11.4407,173.27,173.18,3.78364138]
[1717574727057,7.17,173.23,173.2,2.1362]
[1717574727260,7.17,173.23,173.19,2.1363]
[1717574727572,9.3059,173.23,173.19,2.1363]
[1717574727777,7.17,173.22,173.19,2.1363]
[1717574728488,7.17,173.22,173.2,2.1362]
[1717574729292,7.17,173.22,173.19,2.1363]
[1717574730100,7.17,173.21,173.18,2.1364]
[1717574730598,7.17,173.22,173.19,2.1363]
[1717574731792,9.306,173.22,173.18,2.1364]
[1717574731976,2.136,173.22,173.18,2.1364]
[1717574732175,7.17,173.21,173.19,2.1363]
[1717574732785,9.3061,173.21,173.17,21.8497]
[1717574733079,9.3061,173.21,173.18,2.1365]
[1717574733806,7.17,173.21,173.18,2.1365]
[1717574733983,9.3061,173.21,173.18,2.1365]
[1717574734191,7.17,173.2,173.17,8.6586]
[1717574734998,7.17,173.2,173.17,2.1365]
[1717574735202,7.17,173.2,173.18,2.1364]
[1717574736515,4.272,173.22,173.14,8.5476]
[1717574736823,7.17,173.19,173.16,2.1367]
[1717574737790,7.17,173.18,173.15,2.1368]
[1717574738118,7.17,173.18,173.16,2.1367]
[1717574738285,9.3064,173.19,173.16,2.1367]
[1717574738481,9.3064,173.19,173.15,2.1367]
[1717574738702,7.17,173.18,173.15,2.1367]
[1717574739693,9.3065,173.18,173.15,2.1367]
[1717574740105,7.17,173.18,173.15,2.1367]
[1717574742500,7.17,173.18,173.16,2.1367]
[1717574743101,7.17,173.18,173.15,2.1368]
[1717574743514,7.17,173.18,173.16,2.1367]
[1717574743908,7.17,173.18,173.15,2.1367]
[1717574744509,2.1363,173.2,173.16,2.1367]
[1717574744810,9.3063,173.2,173.14,17.8547]
[1717574745015,9.3063,173.2,173.16,2.1366]
[1717574746808,2.1363,173.19,173.16,2.1366]
[1717574748235,9.3063,173.2,173.17,2.1366]
[1717574748536,9.3063,173.2,173.16,2.1367]
[1717574748911,7.17,173.19,173.11,22.6435397]
[1717574749112,2.1366,173.18,173.14,2.1369]
[1717574749427,2.1366,173.17,173.14,2.1369]
[1717574750704,2.1366,173.17,173.12,10.6085]
[1717574750909,2.1366,173.17,173.14,2.1369]
[1717574754330,2.1366,173.17,173.12,10.6085]
[1717574754726,2.1366,173.17,173.14,2.1369]
[1717574754929,2.1366,173.17,173.13,2.137]
[1717574755233,2.1367,173.16,173.13,2.137]
[1717574755713,2.1367,173.16,173.12,2.1371]
[1717574756123,7.17,173.17,173.12,2.1371]
[1717574756124,2.1368,173.15,173.12,2.1371]
[1717574757128,2.1369,173.15,173.12,2.1371]
[1717574757316,9.3067,173.16,173.12,2.1371]
[1717574757512,6.4102,173.17,173.11,0.7914397]
[1717574757833,9.307,173.14,173.11,2.9287397]
[1717574758149,2.1368,173.16,173.12,2.1372]
[1717574758309,2.1369,173.15,173.11,2.9287397]
[1717574758508,9.3069,173.15,173.11,2.9287397]
[1717574758712,2.137,173.14,173.11,2.9287397]
[1717574759245,9.3069,173.15,173.11,2.9287397]
[1717574759418,2.137,173.14,173.11,2.9287397]
[1717574760258,9.3069,173.15,173.11,0.7914397]
[1717574760556,7.17,173.15,173.12,2.1371]
[1717574760858,9.3068,173.15,173.12,2.1371]
[1717574761166,2.1368,173.16,173.12,2.1371]
[1717574761333,9.3068,173.16,173.12,2.1371]
[1717574761534,2.1368,173.15,173.12,2.1371]
[1717574761946,9.3068,173.16,173.12,2.1371]
[1717574762650,9.3069,173.15,173.11,2.9287397]
[1717574763025,9.3069,173.15,173.12,2.1372]
[1717574763426,41.49418099,173.21,173.12,7.17]
[1717574763646,2.1361,173.21,173.17,2.1365]
[1717574763828,2.1366,173.17,173.13,2.137]
[1717574764033,7.17,173.17,173.11,7.9614397]
[1717574764256,2.1369,173.15,173.12,2.1372]
[1717574764554,2.1368,173.16,173.12,2.1372]
[1717574764756,9.3068,173.16,173.12,2.1372]
[1717574764928,9.3068,173.16,173.13,2.1371]
[1717574765845,2.1366,173.17,173.13,2.1371]
[1717574766034,7.17,173.16,173.12,2.1371]
[1717574766430,2.1368,173.16,173.12,2.1371]
[1717574766632,9.3068,173.16,173.13,2.1371]
[1717574766942,4.2727,173.2,173.14,2.1369]
[1717574767149,4.2727,173.2,173.15,2.1368]
[1717574767341,7.17,173.19,173.15,2.1368]
[1717574767542,9.3065,173.18,173.15,2.1368]
[1717574767751,2.1366,173.17,173.14,2.1369]
[1717574768139,9.3065,173.18,173.14,2.1369]
[1717574768469,2.1366,173.17,173.12,4.2744]
[1717574768757,2.1366,173.17,173.12,11.4444]
[1717574768952,2.1366,173.17,173.14,2.1369]
[1717574769159,9.3065,173.18,173.14,2.1369]
[1717574769845,9.3065,173.18,173.15,2.1368]
[1717574770158,9.3065,173.18,173.14,2.1369]
[1717574770457,9.3065,173.18,173.15,2.1368]
[1717574771438,9.3065,173.18,173.14,2.1369]
[1717574773037,2.1366,173.17,173.14,2.1369]
[1717574774767,2.1369,173.15,173.12,2.1372]
[1717574774954,9.3069,173.15,173.12,2.1372]
[1717574775273,7.17,173.14,173.11,2.9287397]
[1717574775443,9.3069,173.15,173.11,2.9287397]
[1717574776046,7.17,173.14,173.11,2.9287397]
[1717574776249,9.307,173.14,173.11,2.9287397]
[1717574777267,12.04069543,173.48,173.11,2.9287397]
[1717574777268,7.17,173.13,173.11,0.7914397]
[1717574777448,9.3071,173.13,173.11,0.7914397]
[1717574777781,7.17,173.12,173.11,0.7914397]
[1717574777944,9.3071,173.13,173.11,0.7914397]
[1717574778144,7.17,173.12,173.11,0.7914397]
[1717574781368,7.17,173.12,173.11,2.9287397]
[1717574782069,7.17,173.12,173.11,0.7914397]
[1717574782653,7.17,173.13,173.11,2.9287397]
[1717574783779,2.1383,173.03,173.01,0.4]
[1717574783947,4.2752,173.09,173.02,0.4889452]
[1717574784144,2.1376,173.09,173.02,2.6273452]
[1717574784370,7.17,173.08,173.02,2.6273452]
[1717574784570,9.3075,173.1,173.03,9.3082]
[1717574784865,7.17,173.08,173.03,2.1383]
[1717574785180,4.274,173.14,173.02,0.4889452]
[1717574785181,7.17,173.07,173.02,2.6273452]
[1717574785361,7.17,173.06,173.02,2.6273452]
[1717574785558,7.17,173.06,173.02,0.4889452]
[1717574786268,7.17,173.05,173.02,0.4889452]
[1717574789275,2.1377,173.08,173.02,0.4889452]
[1717574789474,7.17,173.06,173.02,0.4889452]
[1717574789663,7.17,173.07,173.02,23.4934452]
[1717574790075,2.1375,173.1,173.03,25.1427]
[1717574790255,8.1284,173.15,173.03,25.1427]
[1717574790256,9.3074,173.11,173.05,7.17]
[1717574790462,9.3074,173.11,173.05,9.308]
[1717574790463,7.17,173.11,173.05,9.308]
[1717574790778,9.3072,173.12,173.06,2.1379]
[1717574791168,9.3072,173.12,173.06,9.3079]
[1717574791361,2.1371,173.13,173.08,6.3241]
[1717574791551,9.3071,173.13,173.08,6.3241]
[1717574791949,2.1372,173.12,173.08,6.3241]
[1717574792451,2.1374,173.11,173.07,16.3195]
[1717574793467,2.1374,173.11,173.08,30.0]
[1717574793659,2.1375,173.1,173.08,30.0]
[1717574794061,2.1374,173.11,173.08,30.0]
[1717574795066,2.1372,173.12,173.08,30.0]
[1717574795271,9.3072,173.12,173.09,6.2834]
[1717574795469,9.3072,173.12,173.09,36.2834]
[1717574796258,2.1373,173.11,173.09,36.2834]
[1717574796655,9.3072,173.12,173.09,36.2834]
[1717574796861,2.1372,173.12,173.09,51.9572]
[1717574797082,2.1371,173.13,173.09,30.0]
[1717574797284,2.1371,173.13,173.11,6.1883]
[1717574798371,4.2728,173.19,173.11,6.1883]
[1717574798701,7.17,173.17,173.12,22.6463]
[1717574798872,4.2728,173.19,173.12,24.7834]
[1717574799074,9.3066,173.17,173.13,22.9326]
[1717574799491,2.1366,173.17,173.14,22.9326]
[1717574799797,2.1367,173.16,173.14,22.9326]
[1717574799971,2.1367,173.16,173.12,22.9326]
[1717574801463,2.1367,173.16,173.12,25.0698]
[1717574801877,2.1367,173.16,173.12,18.5653]
[1717574802200,9.3066,173.17,173.13,6.0087]
[1717574802385,2.1366,173.17,173.14,22.3202]
[1717574802895,8.9443,173.24,173.16,7.17]
[1717574803079,8.9443,173.24,173.19,8.1993]
[1717574803080,9.7058,173.24,173.19,8.1993]
[1717574803276,2.1358,173.23,173.19,24.6506]
[1717574804094,9.7058,173.24,173.2,2.1362]
[1717574804273,2.5358,173.24,173.21,2.1361]
[1717574804684,9.7058,173.24,173.2,2.1361]
[1717574805902,2.5358,173.24,173.2,2.1361]
[1717574806070,0.4,173.24,173.21,2.1361]
[1717574806493,0.4,173.24,173.19,22.5143]
[1717574806671,0.4,173.24,173.19,29.6843]
[1717574806998,0.4,173.24,173.2,2.1361]
[1717574807299,0.4,173.24,173.21,2.136]
[1717574807866,0.4,173.24,173.2,8.3517]
[1717574808299,0.4,173.24,173.21,2.1361]
[1717574808805,0.4,173.24,173.2,8.3517]
[1717574809672,0.4,173.24,173.21,2.1361]
[1717574813786,0.4,173.24,173.2,2.1362]
[1717574813992,0.4,173.24,173.21,2.1361]
[1717574817314,2.5357,173.24,173.2,2.1361]
[1717574817490,2.5357,173.24,173.19,7.17]
[1717574817806,0.4,173.24,173.21,2.1361]
[1717574822499,2.5358,173.24,173.21,2.1361]
[1717574822700,0.4,173.24,173.21,2.1361]
[1717574823398,2.5357,173.24,173.21,2.1361]
[1717574824223,0.4,173.24,173.21,2.1361]
[1717574824520,2.5357,173.24,173.21,2.1361]
[1717574825026,2.5357,173.24,173.2,2.1361]
[1717574825316,7.17,173.21,173.17,4.2731]
[1717574825517,7.17,173.21,173.18,2.1364]
[1717574825702,4.6715,173.24,173.13,8.5484]
[1717574825703,0.4,173.24,173.13,8.5484]
[1717574826022,7.17,173.18,173.15,2.1368]
[1717574826199,2.1359,173.23,173.19,2.1363]
[1717574826401,9.3059,173.23,173.2,2.1362]
[1717574826609,2.1359,173.23,173.2,2.1362]
[1717574826815,2.1358,173.23,173.2,2.1362]
[1717574827017,2.5358,173.24,173.21,2.1361]
[1717574827203,9.7058,173.24,173.18,17.8523]
[1717574827411,9.7058,173.24,173.2,2.1361]
[1717574827625,9.3059,173.23,173.2,2.1361]
[1717574827927,2.5358,173.24,173.2,2.1362]
[1717574828122,7.17,173.23,173.2,2.1362]
[1717574828425,9.7058,173.24,173.2,2.1362]
[1717574828824,2.1358,173.23,173.2,2.1362]
[1717574829211,9.7058,173.24,173.2,2.1362]
[1717574832825,2.1358,173.23,173.19,2.1363]
[1717574833704,2.1358,173.23,173.2,2.1362]
[1717574833907,2.1359,173.23,173.19,2.1363]
[1717574834416,9.7058,173.24,173.2,2.1362]
[1717574835237,0.4,173.24,173.15,8.5474]
[1717574835438,9.7058,173.24,173.19,2.1362]
[1717574837448,2.1359,173.23,173.19,2.1362]
[1717574837752,2.1359,173.23,173.2,2.1362]
[1717574837929,9.3059,173.23,173.19,2.1363]
[1717574838336,7.17,173.23,173.2,2.1362]
[1717574838563,9.3059,173.23,173.19,2.1363]
[1717574838955,2.5358,173.24,173.2,2.1362]
[1717574839142,9.7058,173.24,173.2,2.1362]
[1717574839539,2.5358,173.24,173.2,2.1362]
[1717574840244,0.4,173.24,173.2,2.1361]
[1717574840454,2.5357,173.24,173.2,2.1361]
[1717574841830,9.7057,173.24,173.2,2.1361]
[1717574844255,2.5357,173.24,173.2,2.1361]
[1717574845328,2.5357,173.24,173.18,7.17]
[1717574845329,2.1359,173.23,173.19,2.1363]
[1717574846031,2.1359,173.23,173.18,7.17]
[1717574846032,2.1359,173.23,173.2,2.1362]
[1717574846232,2.1359,173.23,173.18,7.17]
[1717574846233,2.1359,173.23,173.19,2.1363]
[1717574846839,2.1359,173.23,173.2,2.1362]
[1717574847042,2.5358,173.24,173.2,2.1362]
[1717574847263,2.5358,173.24,173.23,2.1358]
[1717574847264,0.4,173.24,173.23,2.1358]
[1717574847473,0.4,173.24,173.23,9.3058]
[1717574848142,0.4,173.24,173.23,13.5775]
[1717574848344,0.4,173.24,173.23,42.7948]
[1717574848557,0.4,173.24,173.23,36.3872]
[1717574848855,0.4,173.24,173.23,42.7948]
[1717574849971,0.4,173.24,173.23,51.3383]
[1717574850463,0.4,173.24,173.23,71.6783]
[1717574850968,0.4,173.24,173.23,64.5083]
[1717574851339,0.4,173.24,173.23,71.6783]
[1717574853597,0.4,173.24,173.23,64.5083]
[1717574853861,0.4,173.24,173.23,71.6783]
[1717574854567,0.4,173.24,173.23,41.5286]
[1717574854765,0.4,173.24,173.23,48.5286]
[1717574855478,0.4,173.24,173.23,54.8925]
[1717574856067,0.4,173.24,173.23,70.0867]
[1717574857382,0.4,173.24,173.23,190.2567]
[1717574858556,0.4,173.24,173.23,207.5467]
[1717574859562,0.4,173.24,173.23,214.7167]
[1717574859770,0.4,173.24,173.23,207.5467]
[1717574862654,0.4,173.34,173.28,8.5407]
[1717574862868,0.4,173.34,173.31,2.1347]
[1717574865379,0.4,173.34,173.32,2.1347]
[1717574865783,0.4,173.34,173.33,2.1346]
[1717574866486,0.4,173.34,173.33,9.3046]
[1717574866779,0.4,173.34,173.33,13.5739]
[1717574869660,0.4,173.34,173.33,13.7439]
[1717574870470,0.4,173.34,173.33,20.1478]
[1717574873786,0.4,173.34,173.33,35.8109]
[1717574874081,0.4,173.34,173.33,191.0275]
[1717574875564,0.4,173.34,173.33,71.0275]
[1717574876476,0.4,173.34,173.33,63.8575]
[1717574876788,0.4,173.34,173.33,48.1944]
[1717574876979,0.4,173.34,173.33,55.3644]
[1717574878562,0.4,173.34,173.33,48.1944]
[1717574878777,0.4,173.34,173.33,55.3644]
[1717574879069,0.4,173.34,173.33,48.1944]
[1717574879475,0.4,173.34,173.33,55.3644]
[1717574880784,0.4,173.34,173.33,48.1944]
[1717574880981,0.4,173.34,173.33,48.8564]
[1717574881176,0.4,173.34,173.33,41.5164]
[1717574881570,0.4,173.34,173.33,48.6864]
[1717574881890,0.4,173.34,173.33,41.5164]
[1717574882057,0.4,173.34,173.33,48.6864]
[1717574885776,0.4,173.34,173.33,2.1346]
[1717574888194,0.4,173.34,173.33,6.4039]
[1717574889676,0.4,173.34,173.33,12.8078]
[1717574890884,0.4,173.34,173.33,6.4039]
[1717574891791,0.4,173.34,173.33,12.8078]
[1717574891996,0.4,173.34,173.33,21.3464]
[1717574894272,0.4,173.34,173.33,28.5164]
[1717574894472,0.4,173.34,173.33,21.3464]
[1717574894706,0.4,173.34,173.33,28.5164]
[1717574895377,0.4,173.34,173.33,21.3464]
[1717574897007,0.4,173.34,173.33,14.9425]
[1717574897205,0.4,173.34,173.33,28.5164]
[1717574897685,0.4,173.34,173.33,28.6864]
[1717574898703,0.4,173.34,173.33,21.5164]
[1717574898889,0.4,173.34,173.33,2.1346]
[1717574900102,0.4,173.34,173.33,6.4039]
[1717574900307,0.4,173.34,173.33,19.9778]
[1717574900887,0.4,173.34,173.33,28.5164]
[1717574901203,0.4,173.34,173.33,50.4582]
[1717574901390,0.4,173.34,173.33,70.6282]
[1717574906618,0.4,173.34,173.33,55.4575]
[1717574906806,0.4,173.34,173.33,48.8564]
[1717574907125,0.4,173.34,173.33,48.6864]
[1717574910689,0.4,173.34,173.33,14.9425]
[1717574910916,0.4,173.34,173.33,21.3464]
[1717574918000,0.4,173.34,173.33,28.5164]
[1717574918201,0.4,173.34,173.33,28.6864]
[1717574918818,0.4,173.34,173.33,48.8564]
[1717574919239,0.4,173.34,173.33,55.2805]
[1717574919412,0.4,173.34,173.33,191.2642]
[1717574926032,0.4,173.34,173.33,184.0942]
[1717574926235,0.4,173.34,173.33,191.2642]
[1717574928706,0.4,173.34,173.33,168.8564]
[1717574929528,0.4,173.34,173.33,190.5132]
[1717574934225,0.4,173.34,173.33,175.1082]
[1717574934425,0.4,173.34,173.33,168.8564]
[1717574936335,0.4,173.34,173.33,48.8564]
[1717574936850,0.4,173.34,173.33,28.8564]
[1717574941518,0.4,173.34,173.33,2.1346]
[1717574941725,0.4,173.34,173.33,6.4039]
[1717574942036,0.4,173.34,173.33,12.8078]
[1717574942231,0.4,173.34,173.33,21.3464]
[1717574942441,0.4,173.34,173.33,48.5164]
[1717574942835,0.4,173.34,173.33,48.8564]
[1717574943843,8.8224,173.34,173.3,2.1349]
[1717574944023,6.0673,173.32,173.21,121.00348624]
[1717574944224,13.2373,173.3,173.23,14.9506]
[1717574944444,13.2373,173.3,173.27,382.4353]
[1717574944643,7.17,173.29,173.27,382.4353]
[1717574945021,6.0673,173.3,173.27,382.4353]
[1717574945022,13.2373,173.3,173.28,2.1352]
[1717574946236,13.2373,173.3,173.27,382.4353]
[1717574946446,6.1944,173.29,173.27,380.3]
[1717574946758,6.1944,173.26,173.25,2.1355]
[1717574946961,13.3644,173.26,173.25,2.1355]
[1717574948535,7.17,173.27,173.26,2.1354]
[1717574948933,7.17,173.27,173.25,2.1355]
[1717574949241,7.17,173.27,173.26,2.1355]
[1717574949435,7.17,173.29,173.27,2.1353]
[1717574950357,6.341,173.31,173.28,2.1351]
[1717574950673,7.17,173.3,173.27,2.1353]
[1717574952464,7.17,173.3,173.28,2.1352]
[1717574952676,8.4759,173.31,173.28,2.1352]
[1717574953148,7.17,173.3,173.28,2.1352]
[1717574953350,6.5189,173.29,173.21,8.5441]
[1717574953686,7.17,173.26,173.24,2.1357]
[1717574953974,7.17,173.25,173.24,2.1357]
[1717574955357,16.0489,173.25,173.14,137.29]
[1717574955576,7.17,173.22,173.19,2.1362]
[1717574955788,7.17,173.21,173.19,2.1362]
[1717574956159,8.8789,173.21,173.11,0.4]
[1717574956360,7.17,173.19,173.13,14.9595]
[1717574956576,13.2867,173.19,173.17,2.1366]
[1717574956765,7.17,173.18,173.16,2.1367]
[1717574957157,7.17,173.18,173.12,4.2743]
[1717574957359,2.1366,173.17,173.11,0.4]
[1717574957562,7.17,173.17,173.13,2.137]
[1717574957760,6.1116,173.13,173.11,0.4]
[1717574957969,13.2816,173.12,173.11,0.4]
[1717574958590,17.6759,173.12,173.11,0.4]
[1717574959967,2.1372,173.12,173.11,0.4]
[1717574960166,30.4888,173.12,173.11,0.4]
[1717574960673,38.32312042,173.12,173.11,0.4]
[1717574961268,40.86162042,173.12,173.11,0.4]